[Event "CIS Master Groups 2024"]
[Site "Vasto"]
[Date "2024.04.12"]
[Round "7.8"]
[White "Belli, Giorgio"]
[Black "Corvi, Marco"]
[Result "1-0"]
[ECO "B27"]
[WhiteElo "2109"]
[BlackElo "2185"]
[Annotator "TA"]
[PlyCount "67"]
[EventDate "2024.04.07"]
[EventType "team-tourn"]
[EventCountry "ITA"]
[SourceTitle "playchess.com"]
[Source "ChessBase"]
[SourceQuality "1"]
[TimeControl "40/5400+30:900+30"]

{[%evp 11,67,12,23,23,32,0,50,36,49,33,45,45,62,77,102,106,102,129,134,81,156,154,159,154,185,170,185,187,264,252,297,288,283,286,337,270,300,281,308,316,419,429,516,512,557,514,732,718,1066,1050,1093,1086,1253,1205,1666,1341,1681,1662]} 1. e4 {[%emt 0:00:06]} c5 {[%emt 0:00:08]} 2. Nf3 {[%emt 0:00:50]} Nc6 {[%emt 0:00:05]} 3. Bb5 {[%emt 0:00:59]} g6 {[%emt 0:00:16]} 4. Bxc6 {[%emt 0:00:06]} bxc6 {[%emt 0:00:08]} 5. d4 {[%emt 0:00:07]} cxd4 {[%emt 0:00:20]} 6. Qxd4 {[%emt 0:00:07]} Nf6 {[%emt 0:00:23]} 7. e5 {[%emt 0:01:42]} Nd5 {[%emt 0:00:08]} 8. c4 {[%emt 0:05:57]} Nc7 {[%emt 0:04:23]} (8... Nb4 $11 9. Qd1 c5) 9. Nc3 {[%emt 0:05:16] Black is weak on the dark squares. White is slightly better.} Bg7 {[%emt 0:01:11]} 10. O-O {[%emt 0:00:54]} Ne6 {[%emt 0:10:02]} 11. Qh4 {[%emt 0:00:59]} Ba6 {[%emt 0:04:34]} 12. Re1 {[%emt 0:03:26]} Rb8 {[%emt 0:06:45] [#]} 13. b3 $1 {[%emt 0:16:26]} h6 {[%emt 0:04:01]} 14. Be3 {[%emt 0:01:48]} Qc7 {[%emt 0:02:55]} 15. Rac1 {[%emt 0:03:58]} (15. Na4 $142) 15... Qb7 {[%emt 0:18:06]} (15... Bb7 $142) 16. Ne4 {[%emt 0:00:56]} Qc7 {[%emt 0:05:38]} 17. Nc5 $40 {[%emt 0:04:28][%mdl 128] White wants a kill. White has more active pieces.} Bc8 {[%emt 0:03:30]} 18. Nxe6 {[%emt 0:01:57]} dxe6 {[%emt 0:01:13]} 19. Bc5 {[%emt 0:00:13]} g5 {[%emt 0:06:48]} (19... a5 $142 20. Rc3 Bb7) 20. Qd4 {[%emt 0:02:19]} O-O {[%emt 0:02:27]} 21. Bxa7 {[%emt 0:01:33]} Rb7 {[%emt 0:06:17][%cal Of8d8] [#] White must now prevent ...Rd8!} 22. Bc5 {[%emt 0:00:07]} Qa5 {[%emt 0:03:52]} 23. Re2 {[%emt 0:02:15]} Rd7 {[%emt 0:06:06]} 24. Qe3 {[%emt 0:04:04]} g4 {[%emt 0:06:10]} 25. b4 {[%emt 0:03:10]} Qd8 {[%emt 0:00:50]} 26. Nd4 {[%emt 0:01:15]} Qc7 {[%emt 0:05:12] White is clearly winning.} 27. a4 {[%emt 0:00:27][%cal Ba2a4,Ba4a5][%mdl 32]} Rfd8 {[%emt 0:00:21]} 28. a5 {[%emt 0:00:23]} f6 {[%emt 0:02:09]} 29. exf6 {[%emt 0:02:14]} Bxf6 {[%emt 0:00:21]} 30. Nxe6 {[%emt 0:00:42]} Rd1+ {[%emt 0:00:07]} 31. Re1 {[%emt 0:00:05]} Rxe1+ {[%emt 0:00:21]} 32. Rxe1 {[%emt 0:00:06]} Bxe6 {[%emt 0:00:19]} 33. Qxe6+ {[%emt 0:00:05]} Kh8 {[%emt 0:00:21]} 34. Bb6 {[%emt 0:00:09] Weighted Error Value: White=0.09 (flawless) /Black=0.37.  Mistake:       	White=1     	Black=3      Inaccurate:     	White=1     	Black=3      OK:         	White=11    	Black=4      Best:        	White=2     	---        Strong:       	White=1     	---} ({Not} 34. Bxe7 Qxe7 35. g3 (35. Qxe7 Bxe7 36. c5 Bf6 $11) 35... Qxe6 36. Rxe6 Bc3 $14) 1-0

[Event "CIS Master Groups 2024"]
[Site "Vasto"]
[Date "2024.04.12"]
[Round "7.9"]
[White "Ceres, Dragos"]
[Black "Ivanisevic, Ivan"]
[Result "0-1"]
[ECO "C50"]
[WhiteElo "2486"]
[BlackElo "2518"]
[Annotator "TA"]
[PlyCount "114"]
[EventDate "2024.04.07"]
[EventType "team-tourn"]
[EventCountry "ITA"]
[SourceTitle "playchess.com"]
[Source "ChessBase"]
[SourceQuality "1"]
[TimeControl "40/5400+30:900+30"]

{[%evp 14,114,0,21,20,23,4,1,2,11,68,20,23,26,41,22,16,6,32,30,35,0,0,0,7,0,0,0,0,0,0,0,0,-16,-11,-43,-40,-44,-34,-48,-14,-27,0,-14,0,-36,0,0,0,0,14,0,0,0,0,0,0,0,0,0,0,0,0,0,0,-2,-3,-3,0,0,0,0,0,0,32,0,0,0,8,8,60,8,8,8,8,8,8,0,0,0,0,0,0,0,0,0,0,0,8,-176,-176,-176,-176]} 1. e4 {[%emt 0:00:01]} e5 {[%emt 0:04:04]} 2. Nf3 {[%emt 0:00:08]} Nc6 {[%emt 0:00:05]} 3. Bc4 {[%emt 0:00:07]} d6 {[%emt 0:00:04]} 4. Nc3 {[%emt 0:01:06]} Be7 {[%emt 0:00:06]} 5. d4 {[%emt 0:02:16]} Nf6 {[%emt 0:00:08]} 6. h3 {[%emt 0:02:07]} O-O {[%emt 0:06:15]} 7. O-O {[%emt 0:00:19]} Nxe4 {[%emt 0:00:24]} 8. Nxe4 {[%emt 0:01:25]} d5 {[%emt 0:00:07] [#]} 9. Bxd5 $1 {[%emt 0:02:12]} Qxd5 {[%emt 0:05:07]} 10. Nc3 {[%emt 0:02:04] Excellent horsemanship.} Qd6 {[%emt 0:00:23] The position is equal.} 11. dxe5 {[%emt 0:00:39]} Qxd1 {[%emt 0:08:33]} (11... Nxe5 $11 12. Nxe5 Qxe5) 12. Nxd1 {[%emt 0:03:09]} (12. Rxd1 $14 Rd8 13. Nd5) 12... Bf5 {[%emt 0:00:46]} 13. c3 {[%emt 0:01:35]} Rad8 {[%emt 0:07:07]} 14. Re1 {[%emt 0:01:46]} Rd3 {[%emt 0:01:05][%cal Of5h3]} 15. Be3 {[%emt 0:06:11]} Rfd8 {[%emt 0:07:55]} 16. Nd4 {[%emt 0:05:24]} Nxd4 {[%emt 0:01:17]} 17. Bxd4 {[%emt 0:00:10]} Be6 {[%emt 0:01:50]} 18. Be3 {[%emt 0:14:08]} Bxa2 {[%emt 0:06:37]} 19. Rxa2 {[%emt 0:03:12]} Rxd1 {[%emt 0:00:07]} 20. Kf1 {[%emt 0:00:07]} a6 {[%emt 0:00:16]} 21. Ra4 {[%emt 0:03:56]} Kf8 {[%emt 0:04:06]} 22. Rc4 {[%emt 0:01:31]} c6 {[%emt 0:00:26]} 23. Ra4 {[%emt 0:04:17]} Ke8 {[%emt 0:00:40]} 24. Ke2 {[%emt 0:05:00]} Rxe1+ {[%emt 0:01:22]} 25. Kxe1 $15 {[%emt 0:00:05][%mdl 4096] Endgame. KRB-KRB} Rd5 {[%emt 0:00:12]} 26. f4 {[%emt 0:00:26]} Rb5 {[%emt 0:02:22]} (26... g5 $5) 27. Ra2 {[%emt 0:00:51]} Kd7 {[%emt 0:00:52][%cal Og7g5]} (27... g5 $5) 28. Ke2 {[%emt 0:01:16]} Ke6 {[%emt 0:06:41][%cal Og7g5]} 29. Kd3 {[%emt 0:02:38]} Rd5+ {[%emt 0:01:26]} 30. Ke4 {[%emt 0:00:58]} f5+ {[%emt 0:00:19]} 31. exf6 {[%emt 0:00:09]} gxf6 {[%emt 0:01:52]} 32. Ra1 {[%emt 0:01:37]} Rb5 {[%emt 0:00:53]} 33. b4 {[%emt 0:00:29]} f5+ {[%emt 0:02:52]} 34. Kd3 {[%emt 0:01:14]} Rd5+ {[%emt 0:00:19]} 35. Kc2 {[%emt 0:04:36]} h5 {[%emt 0:01:49]} 36. Bf2 {[%emt 0:03:26]} Bf6 {[%emt 0:01:13]} 37. Re1+ {[%emt 0:01:40]} Kf7 {[%emt 0:00:06]} 38. Rg1 {[%emt 0:00:33]} Rd8 {[%emt 0:04:13]} 39. g4 {[%emt 0:00:53]} hxg4 {[%emt 0:00:07]} 40. hxg4 {[%emt 0:00:03]} Rh8 {[%emt 0:03:23]} 41. g5 {[%emt 0:17:22]} (41. gxf5 $2 {is the wrong capture.} Rh2 42. Rf1 Bh4 $19) 41... Rh2 {[%emt 0:15:08]} 42. Rf1 {[%emt 0:00:12]} Bg7 {[%emt 0:00:49]} 43. Kb3 {[%emt 0:01:34]} Kg6 {[%emt 0:00:58]} 44. Kc4 {[%emt 0:03:03]} b5+ {[%emt 0:06:11]} 45. Kd3 {[%emt 0:00:43]} Rh3+ {[%emt 0:00:06]} 46. Be3 {[%emt 0:00:04]} Kh5 {[%emt 0:00:16]} ({Better is} 46... Bxc3 $1 $11 47. Rc1 Bxb4 48. Rxc6+ Kh5) 47. Ra1 {[%emt 0:01:33]} (47. Rc1 $14) 47... Bxc3 $11 {[%emt 0:10:33]} 48. Rxa6 {[%emt 0:00:16]} Bxb4 {[%emt 0:00:10]} 49. Rxc6 {[%emt 0:00:22] [#] aiming for Rh6+.} Kg4 {[%emt 0:01:13]} 50. Rh6 {[%emt 0:10:41] Rxh3 would now be deadly.} (50. g6 {with more complications.} Rg3 51. g7 Kh5 52. Rb6) 50... Rg3 {[%emt 0:06:45]} 51. Ke2 {[%emt 0:01:01]} Rg2+ {[%emt 0:00:00]} 52. Kd3 {[%emt 0:00:00] Hoping for g6.} Rg3 {[%emt 0:00:00]} 53. Ke2 {[%emt 0:00:00] Threatens to win with Bf2.} Rg2+ {[%emt 0:00:00]} 54. Bf2 {[%emt 0:00:00][%csl Gf2][%cal Rh6h4]} Kxf4 {[%emt 0:00:00][%cal Ob4c5] Strongly threatening ...Bc5!} ({Worse is} 54... Bc5 55. Rh4#) 55. Rh4+ {[%emt 0:00:00]} Rg4 {[%emt 0:00:00]} 56. g6 $2 {[%emt 0:00:00]} (56. Rxg4+ $1 $11 Kxg4 57. g6) 56... Rxh4 $19 {[%emt 0:00:00]} 57. Bxh4 {[%emt 0:00:00] g7 would kill now.} Bc3 {[%emt 0:00:00] Weighted Error Value: White=0.15 (very precise) /Black=0.08 (flawless) .  Loses game:     	White=1     	---        Mistake:       	White=2     	Black=2      Inaccurate:     	White=4     	Black=5      OK:         	White=19    	Black=24     Best:        	White=1     	Black=5} 0-1

[Event "CIS Master Groups 2024"]
[Site "Vasto"]
[Date "2024.04.12"]
[Round "7.10"]
[White "Seresin, Francesco"]
[Black "Lumachi, Gabriele"]
[Result "0-1"]
[ECO "A13"]
[WhiteElo "2336"]
[BlackElo "2413"]
[Annotator "TA"]
[PlyCount "76"]
[EventDate "2024.04.07"]
[EventType "team-tourn"]
[EventCountry "ITA"]
[SourceTitle "playchess.com"]
[Source "ChessBase"]
[SourceQuality "1"]
[TimeControl "40/5400+30:900+30"]

{[%evp 9,76,6,24,-12,-21,-15,-1,-11,-3,0,0,0,0,-2,9,-20,-6,-19,-24,-14,40,32,25,7,17,14,21,0,0,0,1,2,39,0,0,0,0,-60,-64,-96,-85,-92,-83,-78,-93,-77,-79,-111,-86,-69,-79,-74,-60,-93,-74,-133,-112,-208,-197,-569,-518,-1602,-1491,-1347,-1757,-1859,-1781,-1087,-551]} 1. Nf3 {[%emt 0:05:10]} d5 {[%emt 0:03:15]} 2. e3 {[%emt 0:01:35]} Nf6 {[%emt 0:00:09]} 3. b3 {[%emt 0:00:38]} e6 {[%emt 0:02:13]} 4. Bb2 {[%emt 0:00:23]} Bd6 {[%emt 0:00:12]} 5. c4 {[%emt 0:00:32]} a6 {[%emt 0:01:29]} 6. cxd5 {[%emt 0:04:00]} exd5 {[%emt 0:00:08]} 7. Be2 {[%emt 0:00:15]} b6 {[%emt 0:04:08]} 8. O-O {[%emt 0:03:03] The position is equal.} O-O {[%emt 0:00:36]} 9. d3 {[%emt 0:02:00]} Re8 {[%emt 0:00:38]} 10. Nbd2 {[%emt 0:01:44]} Bb7 {[%emt 0:00:32]} 11. Re1 {[%emt 0:07:56]} Nbd7 {[%emt 0:01:00]} 12. Nf1 {[%emt 0:00:30]} Rc8 {[%emt 0:02:59]} 13. Ng3 {[%emt 0:01:50]} c5 {[%emt 0:00:05]} 14. Qc2 {[%emt 0:07:09]} Ne5 {[%emt 0:12:31]} (14... g6 $11) 15. Nxe5 {[%emt 0:05:53]} Bxe5 {[%emt 0:00:16]} 16. Bf3 {[%emt 0:01:28]} Qd6 {[%emt 0:16:43]} 17. Rac1 {[%emt 0:11:30]} h5 {[%emt 0:00:06][%cal Bh7h5,Bh5h4][%mdl 32]} 18. Qd2 {[%emt 0:10:29]} Bxb2 {[%emt 0:04:45]} 19. Qxb2 {[%emt 0:00:16]} g6 {[%emt 0:02:14]} 20. d4 {[%emt 0:06:21]} h4 {[%emt 0:08:05]} 21. dxc5 {[%emt 0:01:52]} bxc5 {[%emt 0:01:29]} 22. Nf1 {[%emt 0:01:14]} Nh7 {[%emt 0:06:05]} 23. b4 {[%emt 0:09:32]} cxb4 $15 {[%emt 0:05:21]} 24. a3 {[%emt 0:01:11]} Ng5 $1 {[%emt 0:05:09]} (24... bxa3 $2 {is the wrong capture.} 25. Qxb7 Rxc1 26. Rxc1 $18) 25. Qxb4 {[%emt 0:01:10]} Nxf3+ {[%emt 0:02:21]} 26. gxf3 {[%emt 0:00:02]} Qxb4 {[%emt 0:00:14]} 27. axb4 {[%emt 0:00:07] [#]} d4 $1 {[%emt 0:00:03]} 28. e4 {[%emt 0:04:34]} (28. Kg2 Rc3) 28... Kf8 {[%emt 0:14:45]} 29. Nd2 {[%emt 0:02:56]} Rc3 {[%emt 0:00:15]} 30. Rxc3 {[%emt 0:03:31]} dxc3 $17 {[%emt 0:00:04][%mdl 4096] Endgame. KRB-KRN} 31. Nc4 {[%emt 0:00:49]} Bd5 $1 {[%emt 0:02:14]} 32. Ne3 {[%emt 0:05:15]} ({White should try} 32. Nd6 Re6 33. Rc1) 32... Bb3 {[%emt 0:01:15] And now ...Rb8 would win.} 33. Rc1 {[%emt 0:00:36] [#]} (33. Kf1 $17) 33... c2 $1 $19 {[%emt 0:00:46] Strongly threatening ...Rd8.} ({Resist} 33... Rc8 34. Kf1 $15) 34. Nd5 $2 {[%emt 0:01:16]} (34. Nxc2 $2 {loses.} Rc8 35. Kg2 Bxc2 $19 (35... Rxc2 $2 36. Rxc2 Bxc2 37. Kh3 $19)) (34. Kf1) 34... Bxd5 {[%emt 0:00:45] Black is clearly winning.} 35. exd5 {[%emt 0:00:05] [#]} (35. Rxc2 $142 h3 36. Rc3) 35... Rc8 $1 {[%emt 0:00:04] Threatens to win with ...Ke7.} 36. Kf1 {[%emt 0:00:22]} Ke7 {[%emt 0:00:01]} 37. Ke2 {[%emt 0:01:05]} Kd6 {[%emt 0:00:01][%cal Oh4h3] White must now prevent ...h3!} 38. Kd3 {[%emt 0:00:05]} Kxd5 {[%emt 0:00:06] Weighted Error Value: White=0.45/Black=0.08 (flawless) .  Mistake:       	White=5     	Black=1      Inaccurate:     	White=5     	Black=1      OK:         	White=6     	Black=8      Best:        	---       	Black=2      Strong:       	---       	Black=4} 0-1

[Event "CIS Master Groups 2024"]
[Site "Vasto"]
[Date "2024.04.12"]
[Round "7.11"]
[White "Bettalli, Francesco"]
[Black "Boraso, Alessio"]
[Result "1-0"]
[ECO "B45"]
[WhiteElo "2309"]
[BlackElo "2291"]
[Annotator "RC"]
[PlyCount "65"]
[EventDate "2024.04.07"]
[EventType "team-tourn"]
[EventCountry "ITA"]
[SourceTitle "playchess.com"]
[Source "ChessBase"]
[SourceQuality "1"]
[TimeControl "40/5400+30:900+30"]

1. e4 {[%emt 0:00:01]} c5 {[%emt 0:03:56]} 2. Nc3 {[%emt 0:00:39]} e6 {[%emt 0:00:17]} 3. Nge2 {[%emt 0:00:06]} Nf6 {[%emt 0:00:07]} 4. d4 {[%emt 0:03:41]} cxd4 {[%emt 0:00:06]} 5. Nxd4 {[%emt 0:00:02]} Nc6 {[%emt 0:00:13]} 6. a3 {[%emt 0:00:56]} Be7 {[%emt 0:01:09]} 7. Be2 {[%emt 0:01:20]} O-O {[%emt 0:01:09]} 8. Be3 {[%emt 0:00:19]} d5 {[%emt 0:01:54]} 9. exd5 {[%emt 1:27:56]} Nxd5 {[%emt 0:03:10]} 10. Nxd5 {[%emt 0:00:00]} Qxd5 {[%emt 0:01:22]} 11. Bf3 {[%emt 0:00:00]} Qc4 {[%emt 0:04:26]} 12. Be2 {[%emt 0:00:00]} Qd5 {[%emt 0:00:20]} 13. Bf3 {[%emt 0:00:00]} Qc4 {[%emt 0:01:54]} 14. Nxc6 {[%emt 0:00:00]} bxc6 {[%emt 0:00:43]} 15. Be2 {[%emt 0:00:00]} Qd5 {[%emt 0:03:27]} 16. O-O {[%emt 0:00:00]} Rd8 {[%emt 0:07:06]} 17. c4 {[%emt 0:00:00]} Qe5 {[%emt 0:08:38]} 18. Qc2 {[%emt 0:00:00]} c5 {[%emt 0:12:09]} 19. Bf3 {[%emt 0:00:00]} Rb8 {[%emt 0:00:32]} 20. b4 {[%emt 0:00:00]} cxb4 {[%emt 0:18:14]} 21. axb4 {[%emt 0:00:00]} Rxb4 {[%emt 0:05:02]} 22. Rxa7 {[%emt 0:00:00]} Bd6 {[%emt 0:02:29]} 23. g3 {[%emt 0:00:00]} Bc5 {[%emt 0:10:10]} 24. Rd1 {[%emt 0:00:00]} Rf8 {[%emt 0:05:55]} 25. Ra5 {[%emt 0:00:00]} Qf6 {[%emt 0:00:57]} 26. Bxc5 {[%emt 0:00:00]} Qxf3 {[%emt 0:00:42]} 27. Rd3 {[%emt 0:00:00]} Qb7 {[%emt 0:07:11]} 28. Bxf8 {[%emt 0:00:00]} Kxf8 {[%emt 0:00:25]} 29. Rb5 {[%emt 0:00:00]} Rxb5 {[%emt 0:00:42]} 30. cxb5 {[%emt 0:00:00]} Bd7 {[%emt 0:00:26]} 31. Qd2 {[%emt 0:00:00]} Bxb5 {[%emt 0:00:38]} 32. Qb4+ {[%emt 0:00:00]} Qe7 {[%emt 0:00:29]} 33. Qxb5 {[%emt 0:00:00]} 1-0

[Event "CIS Master Groups 2024"]
[Site "Vasto"]
[Date "2024.04.12"]
[Round "7.12"]
[White "Titze, Leo"]
[Black "Pescatore, Lorenzo"]
[Result "1-0"]
[ECO "C55"]
[WhiteElo "2219"]
[BlackElo "2358"]
[Annotator "RC"]
[PlyCount "95"]
[EventDate "2024.04.07"]
[EventType "team-tourn"]
[EventCountry "ITA"]
[SourceTitle "playchess.com"]
[Source "ChessBase"]
[SourceQuality "1"]
[TimeControl "40/5400+30:900+30"]

1. e4 {[%emt 0:03:39]} e5 {[%emt 0:00:10]} 2. Bc4 {[%emt 0:00:33]} Nf6 {[%emt 0:01:07]} 3. d3 {[%emt 0:01:53]} Nc6 {[%emt 0:13:09]} 4. Nf3 {[%emt 0:00:24]} Be7 {[%emt 0:01:26]} 5. O-O {[%emt 0:00:37]} O-O {[%emt 0:00:05]} 6. c3 {[%emt 0:02:50]} d5 {[%emt 0:02:01]} 7. exd5 {[%emt 0:00:22]} Nxd5 {[%emt 0:00:06]} 8. Re1 {[%emt 0:05:45]} Bg4 {[%emt 0:01:01]} 9. Nbd2 {[%emt 0:02:07]} Nb6 {[%emt 0:07:00]} 10. Bb5 {[%emt 0:01:47]} Bd6 {[%emt 0:00:20]} 11. Nf1 {[%emt 0:09:28]} Qf6 {[%emt 0:08:39]} 12. Bxc6 {[%emt 0:03:47]} bxc6 {[%emt 0:00:18]} 13. Ng3 {[%emt 0:00:42]} h6 {[%emt 0:09:33]} 14. h3 {[%emt 0:06:18]} Bxf3 {[%emt 0:00:43]} 15. Qxf3 {[%emt 0:00:08]} Qxf3 {[%emt 0:00:05]} 16. gxf3 {[%emt 0:00:07]} f5 {[%emt 0:11:23]} 17. Bd2 {[%emt 0:04:59]} Na4 {[%emt 0:11:45]} 18. b3 {[%emt 0:02:25]} Nb2 {[%emt 0:06:01]} 19. d4 {[%emt 0:00:30]} Nd3 {[%emt 0:05:49]} 20. Re2 {[%emt 0:03:25]} Rae8 {[%emt 0:07:35]} 21. Rd1 {[%emt 0:17:27]} e4 {[%emt 0:07:40]} 22. Kg2 {[%emt 0:03:26]} Bf4 {[%emt 0:03:02]} 23. Be3 {[%emt 0:03:13]} Bxg3 {[%emt 0:01:52]} 24. fxg3 {[%emt 0:00:07]} g5 {[%emt 0:00:49]} 25. fxe4 {[%emt 0:02:20]} f4 {[%emt 0:00:00]} 26. Bxf4 {[%emt 0:01:42]} Nxf4+ {[%emt 0:00:58]} 27. gxf4 {[%emt 0:00:02]} Rxf4 {[%emt 0:00:06]} 28. e5 {[%emt 0:01:04]} Ref8 {[%emt 0:00:38]} 29. Rd3 {[%emt 0:01:05]} R8f5 {[%emt 0:00:23]} 30. c4 {[%emt 0:03:49]} Kf8 {[%emt 0:01:13]} 31. d5 {[%emt 0:00:42]} cxd5 {[%emt 0:00:05]} 32. cxd5 {[%emt 0:00:01]} g4 {[%emt 0:00:24]} 33. hxg4 {[%emt 0:04:44]} Rxg4+ {[%emt 0:00:04]} 34. Rg3 {[%emt 0:00:04]} Rd4 {[%emt 0:00:24]} 35. Rf3 {[%emt 0:02:30]} Rxf3 {[%emt 0:00:23]} 36. Kxf3 {[%emt 0:00:01]} Rxd5 {[%emt 0:00:08]} 37. Ke4 {[%emt 0:00:08]} Ra5 {[%emt 0:01:26]} 38. Kf5 {[%emt 0:00:11]} Kf7 {[%emt 0:00:35]} 39. Rc2 {[%emt 0:00:21]} c5 {[%emt 0:00:32]} 40. Rd2 {[%emt 0:01:25]} Ke7 {[%emt 0:00:09]} 41. Rg2 {[%emt 0:15:06]} Ra6 {[%emt 0:08:36]} 42. Rg7+ {[%emt 0:00:00]} Ke8 {[%emt 0:05:59]} 43. Rh7 {[%emt 0:00:00]} Kf8 {[%emt 0:01:36]} 44. a4 {[%emt 0:00:00]} Ke8 {[%emt 0:01:28]} 45. e6 {[%emt 0:00:00]} c4 {[%emt 0:00:42]} 46. Kf6 {[%emt 0:00:00]} Kd8 {[%emt 0:00:02]} 47. Kf7 {[%emt 0:00:00]} cxb3 {[%emt 0:00:34]} 48. e7+ {[%emt 0:00:00]} 1-0

[Event "CIS Master Groups 2024"]
[Site "Vasto"]
[Date "2024.04.12"]
[Round "7.13"]
[White "Stella, Andrea"]
[Black "Shevchenko, Kirill"]
[Result "0-1"]
[ECO "A70"]
[WhiteElo "2403"]
[BlackElo "2675"]
[Annotator "TA"]
[PlyCount "59"]
[EventDate "2024.04.07"]
[EventType "team-tourn"]
[EventCountry "ITA"]
[SourceTitle "playchess.com"]
[Source "ChessBase"]
[SourceQuality "1"]
[TimeControl "40/5400+30:900+30"]

{[%evp 18,59,52,45,41,50,43,41,51,41,43,30,52,47,53,56,44,53,42,25,74,-238,-108,-337,-237,-423,-420,-691,-657,-685,-677,-781,-801,-765,-787,-1056,-1047,-968,-968,-1300,-1287,-1146,-745,-29990]} 1. d4 {[%emt 0:02:28]} Nf6 {[%emt 0:00:19]} 2. c4 {[%emt 0:00:06]} c5 {[%emt 0:00:09]} 3. d5 {[%emt 0:00:06]} e6 {[%emt 0:00:04]} 4. Nc3 {[%emt 0:00:05]} exd5 {[%emt 0:00:03]} 5. cxd5 {[%emt 0:00:04]} d6 {[%emt 0:00:04]} 6. Nf3 {[%emt 0:00:47]} g6 {[%emt 0:00:39]} 7. h3 {[%emt 0:00:38]} Bg7 {[%emt 0:00:28]} 8. e4 {[%emt 0:00:07]} O-O {[%emt 0:00:04][%cal Bh8f8,Bf8e8,Be8e5][%mdl 32]} 9. Bd3 {[%emt 0:00:03]} Re8 {[%emt 0:00:04]} 10. O-O {[%emt 0:00:15]} Nbd7 {[%emt 0:00:02][%cal Oc5c4]} 11. Re1 {[%emt 0:10:11]} Ne5 {[%emt 0:00:19]} 12. Nxe5 {[%emt 0:00:23]} Rxe5 {[%emt 0:00:06] White is slightly better.} 13. f4 {[%emt 0:10:31]} Re7 {[%emt 0:00:44]} 14. a4 {[%emt 0:05:46]} Bd7 {[%emt 0:08:34]} 15. e5 {[%emt 0:18:47]} dxe5 {[%emt 0:35:06]} 16. fxe5 {[%emt 0:14:23][%cal Oc1g5] Bg5! would now be deadly.} Qe8 $1 {[%emt 0:04:05] [#]} (16... Nh5 $2 17. Bg5 h6 (17... Bxe5 $2 18. Rxe5 f6 19. Rxe7 $18) 18. Bh4 $18 (18. Bxe7 Qxe7 19. Bb5 Bxb5 $18)) 17. e6 {[%emt 0:00:20]} fxe6 {[%emt 0:00:44]} 18. Bg5 {[%emt 0:01:26]} (18. d6 Rf7 $16) 18... Nh5 {[%emt 0:17:45] [#]} 19. g4 $2 {[%emt 0:18:44][%mdl 8192] [#]} (19. Bc4 $1 $16) 19... Qb8 {[%emt 0:02:26]} (19... Bd4+ $1 $19 {has better winning chances.} 20. Kg2 (20. Kh1 Ng3+) 20... Rf7) 20. d6 $2 {[%emt 0:08:03]} (20. Bxe7 Qg3+ 21. Kf1 Qxh3+ 22. Kf2 Bd4+) (20. Ne2 $17 {was called for.} Nf6 21. dxe6) 20... Bd4+ {[%emt 0:09:07]} 21. Kg2 $2 {[%emt 0:02:40]} (21. Kh1 Ng3+ (21... Bc6+ $2 22. Ne4 $19) 22. Kg2) 21... Rf7 $19 {[%emt 0:00:25]} 22. Rf1 {[%emt 0:01:09] Against Rf2+} (22. gxh5 Rf2+ 23. Kg3 Qxd6+ (23... Rxb2 $2 24. Ne4 $18) 24. Kh4 h6 (24... Rxb2 25. Ne4 $11) (24... Qh2 25. Qg4 Rg2 26. Re3 Bxe3 27. Bxe3 Rxg4+ 28. Kxg4 Qg2+ 29. Kh4 g5+ 30. Bxg5 Qf2+ 31. Kg4 e5+ 32. Bf5 Bxf5#) (24... Rf4+ 25. Kg3 Rf1+ 26. Re5 Qxe5+ 27. Kg4 gxh5+ 28. Kh4 Bf2+ 29. Kxh5 Be8+ 30. Bg6 Bxg6+ 31. Kh6 Qg7#) 25. Qg4 hxg5+ 26. Qxg5 Rf4+ (26... Rxb2 $2 27. Qxg6+ Kf8 28. Qh6+ Ke8 29. Ne4 $19) (26... Rxb2 $2 27. Qxg6+ Kf8 28. Ne4 $19)) (22. Ne4 $142 Nf4+ 23. Bxf4 Rxf4 24. Bb5) 22... Rxf1 {[%emt 0:01:41] Black is clearly winning.} 23. Qxf1 {[%emt 0:01:15]} Qxd6 {[%emt 0:00:20]} 24. Ne4 {[%emt 0:00:24] [#] Wards off Qg3+} Bc6 $1 {[%emt 0:00:13]} 25. gxh5 {[%emt 0:03:19]} Rf8 {[%emt 0:00:28]} 26. Qe2 {[%emt 0:00:55]} Rf2+ {[%emt 0:00:21]} 27. Qxf2 {[%emt 0:00:08]} Bxf2 {[%emt 0:00:04]} 28. Kxf2 {[%emt 0:00:06]} Qxd3 {[%emt 0:00:06]} 29. Nf6+ {[%emt 0:00:07]} Kf7 {[%emt 0:00:04]} 30. Ke1 {[%emt 0:02:14] Weighted Error Value: White=1.41/Black=0.54.  Loses game:     	White=2     	---        Mistake:       	White=2     	Black=2      OK:         	White=4     	Black=5      Best:        	---       	Black=1      Strong:       	---       	Black=1      Brilliant:      	White=1     	---} 0-1